bitfinex/quotes_ETHUSD_20230905
["timestamp","ask_amount","ask_price","bid_price","bid_amount"]
[1693952249538,2.97375815,1631.8,1631.7,7.84262632]
[1693952255162,2.02551559,1631.8,1631.7,7.84262632]
[1693952257254,2.02551559,1631.8,1631.7,7.83719754]
[1693952257457,2.02551559,1631.8,1631.7,7.84314417]
[1693952271979,2.02551559,1631.8,1631.7,7.19951455]
[1693952272452,2.02551559,1631.8,1631.7,7.84314417]
[1693952274386,2.02551559,1631.8,1631.7,9.44062553]
[1693952274981,2.02551559,1631.8,1631.7,8.79699591]
[1693952275342,2.02551559,1631.8,1631.7,9.44062553]
[1693952275848,2.02551559,1631.8,1631.7,8.79699591]
[1693952276048,2.02551559,1631.8,1631.7,9.44062553]
[1693952276346,2.02551559,1631.8,1631.7,8.79699591]
[1693952276674,2.02551559,1631.8,1631.7,9.44062553]
[1693952276976,2.02551559,1631.8,1631.7,8.79699591]
[1693952277398,2.02551559,1631.8,1631.7,9.44062553]
[1693952277545,2.02551559,1631.8,1631.7,8.79699591]
[1693952278176,2.02551559,1631.8,1631.7,9.44062553]
[1693952279986,2.02551559,1631.8,1631.7,8.79699591]
[1693952280351,2.02551559,1631.8,1631.7,9.44062553]
[1693952280552,2.02551559,1631.8,1631.7,8.79699591]
[1693952281175,2.02551559,1631.8,1631.7,9.44062553]
[1693952281895,2.02551559,1631.8,1631.7,8.79699591]
[1693952282310,2.02551559,1631.8,1631.7,9.44062553]
[1693952282601,2.02551559,1631.8,1631.7,8.79699591]
[1693952282949,2.02551559,1631.8,1631.7,9.44062553]
[1693952284012,2.02551559,1631.8,1631.7,8.79699591]
[1693952284211,2.02551559,1631.8,1631.7,9.44062553]
[1693952284628,2.02551559,1631.8,1631.7,8.79699591]
[1693952285230,2.02551559,1631.8,1631.7,9.44062553]
[1693952285575,2.02551559,1631.8,1631.7,8.79699591]
[1693952285911,2.02551559,1631.8,1631.7,9.44062553]
[1693952286209,2.02551559,1631.8,1631.7,8.79699591]
[1693952286576,2.02551559,1631.8,1631.7,9.44062553]
[1693952286977,2.02551559,1631.8,1631.7,8.79699591]
[1693952287188,2.02551559,1631.8,1631.7,9.44062553]
[1693952290209,2.02551559,1631.8,1631.7,8.79699591]
[1693952290580,2.02551559,1631.8,1631.7,9.44062553]
[1693952290982,2.02551559,1631.8,1631.7,8.79699591]
[1693952291183,2.02551559,1631.8,1631.7,9.44062553]
[1693952291583,2.02551559,1631.8,1631.7,8.79699591]
[1693952292205,1.22556529,1631.8,1631.7,9.44062553]
[1693952292518,2.01448726,1631.8,1631.7,9.44062553]
[1693952293317,2.01448726,1631.8,1631.7,3.31205553]
[1693952293506,2.82872299,1631.8,1631.7,1.71457417]
[1693952293697,2.82872299,1631.8,1631.7,7.84314417]
[1693952293879,2.82872299,1631.8,1631.7,7.19951455]
[1693952294082,2.82872299,1631.8,1631.7,1.07094455]
[1693952294517,2.82872299,1631.8,1631.7,7.19951455]
[1693952296225,2.01448726,1631.8,1631.7,7.19951455]
[1693952296909,2.01448726,1631.8,1631.7,8.79699591]
[1693952297426,2.01448726,1631.8,1631.7,9.44062553]
[1693952297720,2.01448726,1631.8,1631.7,8.79699591]
[1693952298329,2.01448726,1631.8,1631.7,9.44062553]
[1693952298835,2.01448726,1631.8,1631.7,8.79699591]
[1693952299129,2.01448726,1631.8,1631.7,9.44062553]
[1693952299629,2.01448726,1631.8,1631.7,8.79699591]
[1693952300026,2.01448726,1631.8,1631.7,9.44062553]
[1693952300624,2.01448726,1631.8,1631.7,8.79699591]
[1693952301034,2.01448726,1631.8,1631.7,9.44062553]
[1693952301330,2.01448726,1631.8,1631.7,8.79699591]
[1693952301706,2.01448726,1631.8,1631.7,9.44062553]
[1693952302129,2.01448726,1631.8,1631.7,8.79699591]
[1693952302328,2.01448726,1631.8,1631.7,9.44062553]
[1693952303430,2.01448726,1631.8,1631.7,8.79699591]
[1693952303862,2.01448726,1631.8,1631.7,9.44062553]
[1693952307266,2.01448726,1631.8,1631.7,8.79699591]
[1693952307633,2.01448726,1631.8,1631.7,9.44062553]
[1693952308040,2.01448726,1631.8,1631.7,8.79699591]
[1693952308262,2.01448726,1631.8,1631.7,9.44062553]
[1693952308686,2.01448726,1631.8,1631.7,8.79699591]
[1693952308852,2.01448726,1631.8,1631.7,9.44062553]
[1693952317697,2.01448726,1631.8,1631.7,3.31205553]
[1693952317999,2.01448726,1631.8,1631.7,1.71457417]
[1693952318365,2.01448726,1631.8,1631.7,7.84314417]
[1693952320799,2.01448726,1631.8,1631.7,9.44062553]
[1693952324803,2.01448726,1631.8,1631.7,7.84314417]
[1693952328709,2.01448726,1631.8,1631.7,7.19951455]
[1693952330411,2.01448726,1631.8,1631.7,7.84314417]
[1693952330717,2.01448726,1631.8,1631.7,7.19951455]
[1693952337095,2.01448726,1631.8,1631.7,1.07094455]
[1693952339031,8.14268726,1631.8,1631.7,1.07094455]
[1693952364571,9.56974099,1631.8,1631.7,0.67581455]
[1693952368163,15.69794099,1631.8,1631.7,0.67581455]
[1693952372906,9.56974099,1631.8,1631.7,0.67581455]
[1693952377693,9.56974099,1631.8,1631.7,0.00594663]
[1693952387241,9.56974099,1631.8,1631.7,1.07096023]
[1693952387719,9.56974099,1631.8,1631.7,0.00594663]
[1693952395260,9.56974099,1631.8,1631.7,1.07096023]
[1693952395559,15.69794099,1631.8,1631.7,1.07096023]
[1693952396358,9.56974099,1631.8,1631.7,1.07096023]
[1693952397561,15.69794099,1631.8,1631.7,1.07096023]
[1693952397764,26.22215525,1631.8,1631.7,0.00594663]
[1693952397946,26.70215525,1631.8,1631.7,0.00594663]
[1693952398479,19.34838996,1631.8,1631.4,3.64559074]
[1693952398631,2.55471551,1631.6,1631.5,1.06516112]
[1693952398986,9.46084413,1631.6,1631.5,1.06516112]
[1693952399126,3.33189413,1631.6,1631.5,1.06516112]
[1693952399322,15.58979413,1631.6,1631.5,1.07089592]
[1693952399587,9.46084413,1631.6,1631.5,1.07089592]
[1693952399879,10.88789786,1631.6,1631.5,1.07089592]
[1693952400028,4.75894786,1631.6,1631.5,1.07089592]
[1693952400675,10.88789786,1631.6,1631.5,1.07089592]
[1693952403480,10.88789786,1631.6,1631.5,0.0057348]
[1693952406371,17.01684786,1631.6,1631.5,0.0057348]
[1693952406883,10.88789786,1631.6,1631.5,0.0057348]
[1693952407086,17.01684786,1631.6,1631.5,0.0057348]
[1693952407789,10.88789786,1631.6,1631.5,0.0057348]
[1693952408155,17.01684786,1631.6,1631.5,0.0057348]
[1693952410475,10.88789786,1631.6,1631.5,0.0057348]
[1693952411203,17.01684786,1631.6,1631.5,0.0057348]
[1693952430736,23.14579786,1631.6,1631.5,0.0057348]
[1693952445059,17.01684786,1631.6,1631.5,0.0057348]
[1693952446574,23.14579786,1631.6,1631.5,0.0057348]
[1693952467583,14.26079413,1631.6,1631.5,0.0057348]
[1693952473319,21.71874413,1631.6,1631.5,0.0057348]
[1693952484354,21.71874413,1631.6,1631.3,1.70888109]
[1693952484859,15.58979413,1631.6,1631.3,1.70888109]
[1693952485450,15.58979413,1631.6,1631.4,0.006111]
[1693952485683,21.71874413,1631.6,1631.4,0.006111]
[1693952485862,21.71874413,1631.6,1631.4,1.07136247]
[1693952496440,15.58979413,1631.6,1631.4,1.07136247]
[1693952497440,21.71874413,1631.6,1631.4,1.07136247]
[1693952498526,20.38974413,1631.6,1631.4,1.07136247]
[1693952520611,2.00289413,1631.6,1631.4,14.11525668]
[1693952520827,2.00289413,1631.6,1631.5,1.06525147]
[1693952521129,2.00289413,1631.6,1631.5,7.19457147]
[1693952521501,2.00289413,1631.6,1631.5,7.20067416]
[1693952521701,2.00289413,1631.6,1631.5,9.02365203]
[1693952521947,2.00289413,1631.6,1631.5,10.62153277]
[1693952522430,2.00289413,1631.6,1631.5,9.02365203]
[1693952522645,2.00289413,1631.6,1631.5,10.62139444]
[1693952523529,2.00289413,1631.6,1631.5,9.02365203]
[1693952523735,2.00289413,1631.6,1631.5,10.62138432]
[1693952523899,2.00289413,1631.6,1631.5,9.02365203]
[1693952524104,2.00289413,1631.6,1631.5,10.62138875]
[1693952524747,2.00289413,1631.6,1631.5,9.02365203]
[1693952524948,2.00289413,1631.6,1631.5,10.621366]
[1693952525745,2.00289413,1631.6,1631.5,9.02365203]
[1693952525911,2.00289413,1631.6,1631.5,10.6213495]
[1693952526538,2.00289413,1631.6,1631.5,9.02365203]
[1693952536277,2.00289413,1631.6,1631.5,2.89433203]
[1693952549182,2.00289413,1631.6,1631.5,1.07135416]
[1693952570516,2.00289413,1631.6,1631.5,1.07135416]
[1693952579022,1.22571551,1631.6,1631.5,1.07135416]
[1693952579423,1.88956834,1631.6,1631.5,1.07135416]
[1693952582424,8.01851834,1631.6,1631.5,1.07135416]
[1693952582591,21.60541834,1631.6,1631.5,1.07135416]
[1693952583323,21.60541834,1631.6,1631.5,0.00610269]
[1693952584417,21.60541834,1631.6,1631.5,3.0]
[1693952585479,21.60541834,1631.6,1631.5,3.00610269]
[1693952597368,15.47646834,1631.6,1631.5,3.00610269]
[1693952607974,9.34751834,1631.6,1631.5,3.00610269]
[1693952620387,15.47646834,1631.6,1631.5,3.00610269]
[1693952620597,17.63696917,1631.6,1631.5,3.00610269]
[1693952633019,17.63696917,1631.6,1631.5,0.00610269]
[1693952638696,17.63696917,1631.6,1631.5,3.00610269]
[1693952659408,15.47646834,1631.6,1631.5,3.00610269]
[1693952664549,9.34751834,1631.6,1631.5,3.00610269]
[1693952665944,3.21856834,1631.6,1631.5,3.00610269]
[1693952666352,3.21856834,1631.6,1631.5,9.13542269]
[1693952670366,1.88956834,1631.6,1631.5,10.20061]
[1693952680983,1.88956834,1631.6,1631.5,9.13542269]
[1693952681180,1.88956834,1631.6,1631.5,10.20059623]
[1693952681551,1.88956834,1631.6,1631.5,9.13542269]
[1693952686205,1.88956834,1631.6,1631.5,10.20058093]
[1693952695597,1.88956834,1631.6,1631.5,16.32990093]
[1693952695796,1.88956834,1631.6,1631.5,18.99436468]
[1693952695962,1.88956834,1631.6,1631.5,20.59205632]
[1693952705311,1.83956834,1631.6,1631.5,20.59205632]
[1693952706261,1.83956834,1631.6,1631.5,14.46273632]
[1693952731651,1.83956834,1631.6,1631.5,15.10636594]
[1693952732062,1.83956834,1631.6,1631.5,14.46273632]
[1693952732776,1.83956834,1631.6,1631.5,20.59205632]
[1693952733145,1.83956834,1631.6,1631.5,21.23568594]
[1693952733779,1.83956834,1631.6,1631.5,20.59205632]
[1693952734581,1.83956834,1631.6,1631.5,21.23568594]
[1693952759498,1.17571551,1631.6,1631.5,21.23568594]
[1693952759698,1.7753377,1631.6,1631.5,21.23568594]
[1693952765621,1.7753377,1631.6,1631.5,21.22958325]
[1693952769595,1.7753377,1631.6,1631.5,21.23568594]
[1693952784351,1.13638949,1631.6,1631.5,32.0097869]
[1693952784520,1.13638949,1631.6,1631.5,33.86082664]
[1693952784718,1.13638949,1631.6,1631.5,35.46729756]
[1693952784719,0.59962219,1631.6,1631.5,35.46729756]
[1693952785347,1.2254902,1631.9,1631.5,35.46729756]
[1693952785521,1.2254902,1631.9,1631.8,0.64259649]
[1693952785725,1.2254902,1631.9,1631.8,13.96415473]
[1693952786544,1.2254902,1631.9,1631.8,13.9702325]
[1693952786746,1.2254902,1631.9,1631.8,20.78483601]
[1693952786951,1.2254902,1631.9,1631.8,23.02512414]
[1693952787258,1.2254902,1631.9,1631.8,29.51408171]
[1693952788756,1.2254902,1631.9,1631.8,28.87148522]
[1693952789126,1.6297,1632.2,1631.8,28.87148522]
[1693952789327,1.22534003,1632.1,1631.9,1.06515824]
[1693952789536,1.22534003,1632.1,1632.0,6.12745]
[1693952789735,1.22534003,1632.1,1632.0,12.2549]
[1693952790626,1.22534003,1632.1,1632.0,12.26096116]
[1693952793194,1.22534003,1632.1,1632.0,21.55625328]
[1693952793489,1.22534003,1632.1,1632.0,27.89859665]
[1693952793858,0.101,1632.4,1632.0,27.89859665]
[1693952794191,1.2251899,1632.3,1632.2,18.3801]
[1693952794563,1.2251899,1632.3,1632.2,18.38613102]
[1693952794769,1.2251899,1632.3,1632.2,20.85853555]
[1693952796560,1.2251899,1632.3,1632.2,23.85853555]
[1693952797797,1.72372296,1632.3,1632.2,23.85853555]
[1693952807980,1.72372296,1632.3,1632.2,24.9232199]
[1693952808275,1.72372296,1632.3,1632.2,23.85853555]
[1693952808610,1.72372296,1632.3,1632.2,24.9232205]
[1693952815686,1.72372296,1632.3,1632.2,26.52025329]
[1693952820392,1.72372296,1632.3,1632.2,27.16284978]
[1693952822720,1.72372296,1632.3,1632.2,30.22986404]
[1693952824469,1.08493437,1632.3,1632.2,30.22986404]
[1693952826631,1.08493437,1632.3,1632.2,33.32305449]
[1693952828555,1.08493437,1632.3,1632.2,32.680458]
[1693952831071,1.08493437,1632.3,1632.2,33.96565099]
[1693952831682,1.08493437,1632.3,1632.2,33.96416923]
[1693952837088,1.08493437,1632.3,1632.2,32.67897624]
[1693952838584,1.08493437,1632.3,1632.2,33.96416923]
[1693952839794,1.08493437,1632.3,1632.2,32.67897624]
[1693952841593,1.08493437,1632.3,1632.2,33.32151066]
[1693952842689,1.08493437,1632.3,1632.2,30.22980197]
[1693952843390,1.08493437,1632.3,1632.2,30.54968053]
[1693952843595,1.08493437,1632.3,1632.2,33.32148876]
[1693952851198,1.08493437,1632.3,1632.2,30.22981278]
[1693952855711,1.08493437,1632.3,1632.2,33.32139685]
[1693952855899,1.08493437,1632.3,1632.2,30.22981278]
[1693952856424,1.08493437,1632.3,1632.2,33.32139888]
[1693952856724,0.49853306,1632.3,1632.2,33.32139888]
[1693952857227,0.101,1632.4,1632.2,33.32139888]
[1693952857400,0.101,1632.4,1632.3,9.06087189]
[1693952857601,0.101,1632.4,1632.3,17.981372]
[1693952858622,0.101,1632.4,1632.3,17.98739472]
[1693952863210,0.101,1632.4,1632.3,15.32567698]
[1693952863537,0.101,1632.4,1632.3,17.98712913]
[1693952867352,0.101,1632.4,1632.3,18.62967436]
[1693952869528,0.101,1632.4,1632.3,19.69693536]
[1693952871743,0.101,1632.4,1632.3,20.18543219]
[1693952872541,0.58982259,1632.4,1632.3,20.18543219]
[1693952885070,0.58982259,1632.4,1632.3,3.3100201]
[1693952885071,1.91882259,1632.4,1632.3,3.3100201]
[1693952885364,1.91882259,1632.4,1632.3,7.83946881]
[1693952885862,1.91882259,1632.4,1632.3,9.4363401]
[1693952886066,1.91882259,1632.4,1632.3,7.83946881]
[1693952887271,1.91882259,1632.4,1632.3,9.4363401]
[1693952897280,1.91882259,1632.4,1632.3,15.5626601]
[1693952912818,0.58982259,1632.4,1632.3,15.5626601]
[1693952921005,0.58982259,1632.4,1632.3,9.4363401]
[1693952921218,0.58982259,1632.4,1632.3,1.07060358]
[1693952921219,20.61102992,1632.4,1632.3,1.07060358]
[1693952921383,20.61102992,1632.4,1632.3,0.00602272]
[1693952921724,20.61102992,1632.4,1632.0,1.60495821]
[1693952921725,1.22526496,1632.2,1632.0,1.60495821]
[1693952921917,7.35202496,1632.2,1632.1,1.06475297]
[1693952922113,2.57311646,1632.2,1632.1,1.06475297]
[1693952922317,9.17549586,1632.2,1632.1,1.06475297]
[1693952922614,3.04879586,1632.2,1632.1,1.07056097]
[1693952922827,4.37779586,1632.2,1632.1,1.07056097]
[1693952923032,4.37779586,1632.2,1632.1,0.005808]
[1693952923730,10.50449586,1632.2,1632.1,0.005808]
[1693952924089,16.63119586,1632.2,1632.1,0.005808]
[1693952924914,10.50449586,1632.2,1632.1,0.005808]
[1693952928121,4.37779586,1632.2,1632.1,0.005808]
[1693952928317,9.15664436,1632.2,1632.1,0.005808]
[1693952931211,3.02994436,1632.2,1632.1,0.005808]
[1693952960824,3.02994436,1632.2,1632.1,1.07052754]
[1693952961507,9.15664436,1632.2,1632.1,1.07052754]
[1693952962307,9.15664436,1632.2,1632.1,1.07052857]
[1693952963478,3.02994436,1632.2,1632.1,1.07052857]
[1693952966833,3.02994436,1632.2,1632.1,1.7130738]
[1693952968401,1.70094436,1632.2,1632.1,1.7130738]
[1693952984828,1.70094436,1632.2,1632.1,7.8401438]
[1693952985498,1.70094436,1632.2,1632.1,7.19759857]
[1693952991323,1.70094436,1632.2,1632.1,1.07052857]
[1693952999129,7.82764436,1632.2,1632.1,1.07052857]
[1693953003943,1.70094436,1632.2,1632.1,1.07052857]
[1693953005350,7.82764436,1632.2,1632.1,1.07052857]
[1693953005650,10.6849558,1632.2,1632.1,1.07052857]
[1693953005817,17.2916558,1632.2,1632.1,1.07052857]
[1693953006611,11.1649558,1632.2,1632.1,1.07052857]
[1693953014678,5.0382558,1632.2,1632.1,1.07052857]
[1693953014829,3.50994436,1632.2,1632.1,1.07052857]
[1693953015761,3.50994436,1632.2,1632.1,7.19759857]
[1693953040498,2.18094436,1632.2,1632.1,13.32466857]
[1693953041204,1.70094436,1632.2,1632.1,13.32466857]
[1693953041534,1.70094436,1632.2,1632.1,21.04884863]
[1693953042036,1.70094436,1632.2,1632.1,23.69876802]
[1693953047639,1.70094436,1632.2,1632.1,17.57169802]
[1693953057533,1.70094436,1632.2,1632.1,23.69876802]
[1693953060750,1.70094436,1632.2,1632.1,24.661181]
[1693953063569,1.70094436,1632.2,1632.1,25.30406677]
[1693953064270,0.4756794,1632.2,1632.1,25.30406677]
[1693953064476,1.32611485,1632.4,1632.1,25.30406677]
[1693953064769,1.32611485,1632.4,1632.3,12.25264]
[1693953065556,1.32611485,1632.4,1632.3,12.25842034]
[1693953073291,1.32611485,1632.4,1632.3,13.32298211]
[1693953073683,1.75581001,1632.4,1632.3,13.32298211]
[1693953074573,1.75581001,1632.4,1632.3,12.25842034]
[1693953074907,1.75581001,1632.4,1632.3,14.54214904]
[1693953085534,1.75581001,1632.4,1632.3,2.28950904]
[1693953085830,1.75581001,1632.4,1632.3,12.25842034]
[1693953100271,1.75581001,1632.4,1632.3,12.73950717]
[1693953101569,1.75581001,1632.4,1632.3,13.80409932]
[1693953103782,1.75581001,1632.4,1632.3,7.67777932]
[1693953104881,1.75581001,1632.4,1632.3,9.27467042]
[1693953106083,1.75581001,1632.4,1632.3,8.79358359]
[1693953118503,1.75581001,1632.4,1632.3,7.19669249]
[1693953129415,1.70581001,1632.4,1632.3,7.19669249]
[1693953137531,13.95769001,1632.4,1632.3,1.07037249]
[1693953137821,16.09891901,1632.4,1632.3,1.07037249]
[1693953138194,16.09891901,1632.4,1632.3,0.00578034]
[1693953144331,9.97297901,1632.4,1632.3,0.00578034]
[1693953144552,7.83175001,1632.4,1632.3,0.00578034]
[1693953144829,7.83175001,1632.4,1632.3,1.07037249]
[1693953153035,7.83175001,1632.4,1632.3,0.00578034]
[1693953153332,7.83175001,1632.4,1632.3,1.07039928]
[1693953162342,1.70581001,1632.4,1632.3,1.07039928]
[1693953177976,7.83175001,1632.4,1632.3,1.07039928]
[1693953189285,7.61227672,1632.4,1632.3,1.07039928]
[1693953189714,7.61227672,1632.4,1632.3,1.0689299]
[1693953191913,7.61227672,1632.4,1632.3,0.00431096]
[1693953199704,7.61227672,1632.4,1632.2,9.55876841]
[1693953201122,7.61227672,1632.4,1632.2,7.96184]
[1693953204928,7.61227672,1632.4,1632.2,1.8352]
[1693953205130,13.73821672,1632.4,1632.2,1.8352]
[1693953206902,15.06721672,1632.4,1632.1,14.97684806]
[1693953207102,15.06721672,1632.4,1632.2,1.06465873]
[1693953207527,17.35153839,1632.4,1632.2,7.19132873]
[1693953207734,17.35153839,1632.4,1632.2,6.12667]
[1693953207735,11.22559839,1632.4,1632.2,6.12667]
[1693953208703,11.22559839,1632.4,1632.2,7.72359841]
[1693953211528,11.22559839,1632.4,1632.2,6.12667]
[1693953211905,11.22559839,1632.4,1632.2,7.72365878]
[1693953212105,8.94127672,1632.4,1632.2,7.72365878]
[1693953214046,8.94127672,1632.4,1632.2,13.85035878]
[1693953217937,2.81533672,1632.4,1632.2,13.85035878]
[1693953218640,1.48633672,1632.4,1632.2,13.85035878]
[1693953219433,1.48633672,1632.4,1632.2,19.97705878]
[1693953220012,1.48633672,1632.4,1632.2,22.98900592]
[1693953220237,1.48633672,1632.4,1632.2,21.39201714]
[1693953220440,1.48633672,1632.4,1632.3,1.06463458]
[1693953220622,1.48633672,1632.4,1632.3,13.31727458]
[1693953231578,1.48633672,1632.4,1632.3,12.25264]
[1693953231772,1.48633672,1632.4,1632.3,13.31726284]
[1693953232762,1.48633672,1632.4,1632.3,14.91418828]
[1693953233147,1.48633672,1632.4,1632.3,13.31726284]
[1693953233362,1.48633672,1632.4,1632.3,14.91418807]
[1693953233562,1.48633672,1632.4,1632.3,13.31726284]
[1693953234276,1.48633672,1632.4,1632.3,14.91418967]
[1693953235484,1.48633672,1632.4,1632.3,13.31726284]
[1693953235683,1.48633672,1632.4,1632.3,14.91418989]
[1693953236694,1.48633672,1632.4,1632.3,13.31726284]
[1693953237092,1.48633672,1632.4,1632.3,14.91418961]
[1693953237393,1.48633672,1632.4,1632.3,13.31726284]
[1693953240389,1.48633672,1632.4,1632.3,14.91418755]
[1693953253615,1.05664156,1632.4,1632.3,14.91418755]
[1693953253917,1.52152992,1632.4,1632.3,14.91418755]
[1693953263390,1.52152992,1632.4,1632.3,15.41663072]
[1693953265229,1.52152992,1632.4,1632.3,9.29031072]
[1693953288273,1.52152992,1632.4,1632.3,8.78786755]
[1693953289968,1.52152992,1632.4,1632.3,7.19094284]
[1693953297246,7.64746992,1632.4,1632.3,1.06462284]
[1693953299949,7.64746992,1632.4,1632.3,1.54518196]
[1693953300778,7.64746992,1632.4,1632.3,1.73195774]
[1693953301174,1.52152992,1632.4,1632.3,1.73195774]
[1693953307276,7.64746992,1632.4,1632.3,1.73195774]
[1693953314118,7.64746992,1632.4,1632.3,1.06462284]
[1693953328742,7.64746992,1632.4,1632.3,1.56465348]
[1693953329853,7.64746992,1632.4,1632.3,1.06462284]
[1693953331852,7.64746992,1632.4,1632.3,1.06786888]
[1693953349195,15.10240992,1632.4,1632.3,0.00324604]
[1693953349355,17.22520991,1632.4,1632.3,0.00324604]
[1693953351591,15.89620991,1632.4,1632.3,0.00324604]
[1693953353292,9.77026991,1632.4,1632.3,0.00324604]
[1693953359729,15.89620991,1632.4,1632.3,0.00324604]
[1693953360527,26.41816417,1632.4,1632.3,0.00324604]
[1693953360728,26.89816417,1632.4,1632.3,0.00324604]
[1693953360919,26.89816417,1632.4,1632.2,3.0]
[1693953361116,1.35510535,1632.3,1632.2,3.0]
[1693953361319,19.73406535,1632.3,1632.2,3.0]
[1693953361550,20.18011368,1632.3,1632.2,3.0]
[1693953361697,20.18011368,1632.3,1632.2,1.77473504]
[1693953361898,20.18011368,1632.3,1632.2,1.77798805]
[1693953362210,20.18011368,1632.3,1632.2,0.55272309]
[1693953362418,0.67254187,1632.2,1632.0,0.49174698]
[1693953362729,12.25414,1632.1,1631.9,2.63308577]
[1693953362950,12.25414,1632.1,1632.0,1.06480815]
[1693953363543,6.12707,1632.1,1632.0,1.06480815]
[1693953363738,14.25539187,1632.2,1632.0,1.06480815]
[1693953363941,16.37819186,1632.2,1632.0,1.06480815]
[1693953364237,16.37819186,1632.2,1632.0,7.19222815]
[1693953364417,16.37819186,1632.2,1632.0,6.12742]
[1693953364830,16.37819186,1632.2,1632.1,0.00370645]
[1693953365815,16.37819186,1632.2,1631.9,15.84236471]
[1693953366022,16.37819186,1632.2,1631.9,10.20807095]
[1693953367953,16.37819186,1632.2,1631.9,16.33589095]
[1693953368848,16.37819186,1632.2,1632.0,0.00371629]
[1693953373369,0.44598745,1632.1,1632.0,0.00371629]
[1693953373868,14.25539187,1632.2,1632.0,0.00371629]
[1693953374106,16.49817306,1632.2,1632.0,0.00371629]
[1693953388491,0.44392644,1632.1,1632.0,0.00371629]
[1693953388690,6.57099644,1632.1,1632.0,0.00371629]
[1693953388890,6.12707,1632.1,1632.0,0.00371629]
[1693953394715,6.12707,1632.1,1632.0,1.0684991]
[1693953403495,6.54188826,1632.1,1632.0,1.0684991]
[1693953405819,6.54188826,1632.1,1632.0,1.71138487]
[1693953442808,0.41481826,1632.1,1632.0,15.81793103]
[1693953442971,0.41481826,1632.1,1632.0,23.86210195]
[1693953443171,0.67254187,1632.2,1632.0,23.86210195]
[1693953443376,0.67254187,1632.2,1632.1,3.30507916]
[1693953443588,0.67254187,1632.2,1632.1,21.68628916]
[1693953443786,0.67254187,1632.2,1632.1,24.74944062]
[1693953444107,0.67254187,1632.2,1632.1,24.75432465]
[1693953445811,12.25146,1632.5,1632.1,24.75432465]
[1693953446000,1.22511613,1632.4,1632.2,1.06478281]
[1693953446206,1.22511613,1632.4,1632.2,7.19121281]
[1693953446381,1.22511613,1632.4,1632.2,8.84806909]
[1693953447493,7.35109613,1632.4,1632.2,8.84806909]
[1693953447825,7.35109613,1632.4,1632.3,0.00485697]
[1693953448389,7.79517996,1632.4,1632.3,0.00485697]
[1693953452691,13.92115996,1632.4,1632.3,0.00485697]
[1693953461305,7.79517996,1632.4,1632.3,0.00485697]
[1693953467312,1.66919996,1632.4,1632.3,0.00485697]
[1693953467535,7.79513996,1632.4,1632.3,0.00485697]
[1693953477931,13.92107996,1632.4,1632.3,0.00485697]
[1693953490196,1.66919996,1632.4,1632.3,7.19579627]
[1693953491176,7.79513996,1632.4,1632.3,1.06947627]
[1693953492753,7.79513996,1632.4,1632.3,0.00485697]
[1693953492988,7.79513996,1632.4,1632.3,1.06947748]
[1693953497497,1.66919996,1632.4,1632.3,7.19579748]
[1693953499501,1.66919996,1632.4,1632.3,8.9359638]
[1693953499801,1.66919996,1632.4,1632.3,15.0622838]
[1693953501086,1.66919996,1632.4,1632.3,8.9359638]
[1693953501863,1.66919996,1632.4,1632.3,16.65914668]
[1693953502071,1.66919996,1632.4,1632.3,17.30224932]
[1693953502604,1.66919996,1632.4,1632.3,16.65914668]
[1693953502968,1.66919996,1632.4,1632.3,17.30224932]
[1693953505205,1.66919996,1632.4,1632.3,23.42856932]
[1693953506109,1.66919996,1632.4,1632.3,17.30224932]
[1693953506303,1.66919996,1632.4,1632.3,16.65914668]
[1693953507808,1.66919996,1632.4,1632.3,22.78546668]
[1693953509277,1.66919996,1632.4,1632.3,14.91898036]
[1693953509611,1.66919996,1632.4,1632.3,13.32211748]
[1693953512311,1.66919996,1632.4,1632.3,14.91898036]
[1693953514715,1.66919996,1632.4,1632.3,21.04530036]
[1693953540581,1.66919996,1632.4,1632.3,21.688403]
[1693953576029,1.66919996,1632.4,1632.3,21.68827963]
[1693953595692,1.66919996,1632.4,1632.3,19.02691961]
[1693953595995,1.66919996,1632.4,1632.3,21.68830434]
[1693953599903,1.66919996,1632.4,1632.3,22.65071732]
[1693953600075,1.66919996,1632.4,1632.3,21.68830434]
[1693953600396,1.66919996,1632.4,1632.3,22.65071732]
[1693953600687,1.66919996,1632.4,1632.3,21.68830434]
[1693953601194,1.66919996,1632.4,1632.3,22.65071732]
[1693953601394,1.66919996,1632.4,1632.3,21.68830434]
[1693953601698,1.66919996,1632.4,1632.3,22.65071732]
[1693953601861,1.66919996,1632.4,1632.3,21.68830434]
[1693953606918,1.66919996,1632.4,1632.3,24.92710355]
[1693953607282,1.66919996,1632.4,1632.3,25.88951653]
[1693953607673,1.66919996,1632.4,1632.3,24.92710355]
[1693953608081,1.66919996,1632.4,1632.3,25.88951653]
[1693953608299,1.66919996,1632.4,1632.3,24.92710355]
[1693953608809,1.66919996,1632.4,1632.3,22.65071732]
[1693953610412,1.66919996,1632.4,1632.3,21.68830434]
[1693953610617,1.66919996,1632.4,1632.3,9.43566434]
[1693953610783,1.66919996,1632.4,1632.3,7.8388335]
[1693953610978,1.66919996,1632.4,1632.3,1.7125135]
[1693953611186,16.77505696,1632.4,1632.3,1.06941086]
[1693953611503,22.90099696,1632.4,1632.3,0.00485697]
[1693953611676,23.38099696,1632.4,1632.3,0.00485697]
[1693953611883,23.38099696,1632.4,1632.1,0.64310264]
[1693953612153,23.38099696,1632.4,1632.0,1.70781803]
[1693953612320,1.47292834,1632.3,1632.1,1.06472584]
[1693953612615,6.1267,1632.2,1632.0,0.64310264]
[1693953612815,13.5824,1632.2,1632.0,1.70783079]
[1693953613413,0.45335949,1632.1,1632.0,1.70783079]
[1693953613615,6.12707,1632.1,1632.0,1.06472815]
[1693953613789,6.12707,1632.1,1631.9,1.60551562]
[1693953613790,14.808517,1632.1,1631.8,0.64310264]
[1693953613991,1.329,1631.9,1631.8,1.70794086]
[1693953614196,1.329,1631.9,1631.8,1.06483822]
[1693953614718,7.45682,1631.9,1631.8,1.06483822]
[1693953615705,1.329,1631.9,1631.8,1.06483822]
[1693953616586,1.329,1631.9,1631.8,7.19303822]
[1693953617116,1.329,1631.9,1631.8,6.1282]
[1693953617785,1.329,1631.9,1631.7,12.25675]
[1693953617985,7.45684,1631.9,1631.7,6.12832]
[1693953618923,9.22936834,1631.9,1631.7,6.12832]
[1693953619130,1.329,1631.8,1631.6,1.59683084]
[1693953619350,7.4576,1631.7,1631.5,12.90136264]
[1693953619666,1.329,1631.7,1631.6,7.1939282]
[1693953619967,2.5546404,1631.7,1631.6,7.1939282]
[1693953620126,2.5546404,1631.7,1631.6,1.0649782]
[1693953620331,2.5546404,1631.7,1631.6,7.1939282]
[1693953620528,2.5546404,1631.7,1631.6,1.0649782]
[1693953620943,2.5546404,1631.7,1631.6,7.1939282]
[1693953624347,3.42293744,1631.7,1631.6,1.0649782]
[1693953624563,9.55150744,1631.7,1631.6,1.0649782]
[1693953627289,8.9125058,1631.7,1631.6,1.0649782]
[1693953627490,8.04420876,1631.7,1631.6,1.0649782]
[1693953628379,8.49836249,1631.7,1631.6,1.0649782]